Workbook

Sheet 수의계약대상토지
A1: □ 광교지구 수의계약 대상부지(도시, 주차장, 업무, 유치원)
A2: 2016년 1월 13일 현재
A3: 일련 번호 | B3: 용도 | C3: 번호 | D3: 확정지번 | F3: 면적 | H3: 공급금액(원) | I3: 공급단가 | K3: 건폐율 (%) | L3: 용적율 (%) | M3: 최고높이 /층수 | N3: 용도지역 | O3: 토지사용 가능시기 | P3: 납부계좌 (농협은행 가상계좌) | Q3: 알선수수료(원) [2016.01.13 계약분부터 적용] | R3: 알선수수료(제세공과금 포함된 금액임) 지급시 개인의 경우 기타소득 세율인 22% 원천징수 공제, 사업자의 경우 간이과세자는 현금영수증, 일반과세자는 세금계산서 발행 필요하오니 참고하시기 바랍니다.
D4: 주소지 | E4: 번지 | F4: ㎡ | G4: 3.3㎡ | I4: ㎡단가(원) | J4: 3.3㎡단가(원) | Q4: 도시지원 0.2% 근생 등 기타용지 0.9% | R4: 납부조건
A5: 합 계 | F5: =F8+F12+F14+F16 -> 22259.6 | G5: =G8+G12+G14+G16 -> 6733.498699 | H5: 44062618500
A6: 1 | B6: 도시지원 | C6: 도시 8 | D6: 수원시 원천동 | E6: 559 | F6: 4446.7 | G6: =F6/3.3058 -> 1345.120697 | H6: =ROUNDDOWN(I6*F6,-3) -> 9515938000 | I6: 2140000 | J6: =I6*3.3058 -> 7074412 | K6: 60 | L6: 300 | M6: 10층이하 | N6: 준주거 | O6: 토지대금 전액납부 즉시 가능 | P6: 7900 1299 658386 | Q6: =ROUNDDOWN(H6*0.002,-3) -> 19031000 | R6: 5개월 일시납, 3년 분할납부중 택일 | S6: =ROUNDDOWN(H6*0.002,-3) -> 19031000 | T6: =IF(S6>30000000,1,0) -> 0 | U6: =IF(Q6=30000000,1,0) -> 0 | V6: =IF(T6=U6,"일치","불일치") -> 일치 | W6: =IF(H6>5000000000,"3년","3년이하") -> 3년
A7: 2 | B7: 도시지원 | C7: 도시13-2-1 | D7: 수원시 이의동 | E7: 1286 | F7: 4897 | G7: 1481.335834 | H7: 11312070000 | I7: 2310000 | J7: 7636398 | K7: 60 | L7: 400 | M7: 15층이하 | N7: 준주거 | O7: 토지대금 전액납부 즉시 가능 | P7: 7900 1299 659767 | Q7: =ROUNDDOWN(H7*0.002,-3) -> 22624000 | R7: 5개월 일시납, 3년 분할납부중 택일 | S7: 22624000 | T7: 0 | U7: 0 | V7: 일치 | W7: =IF(H7>5000000000,"3년","3년이하") -> 3년
B8: 소계 | F8: =SUM(F6:F7) -> 9343.7 | G8: =SUM(G6:G7) -> 2826.456531 | H8: =SUM(H6:H7) -> 20828008000 | I8: =H8/F8 -> 2229096.397 | J8: =H8/G8 -> 7368946.868 | Q8: =SUM(Q6:Q7) -> 41655000 | V8: 일치 | W8: 3년
A9: 1 | B9: 주차장 | C9: 주28 | D9: 수원시 이의동 | E9: 1252-2 | F9: 4706.6 | G9: 1423.740093 | H9: 7812956000 | I9: 1660000 | J9: 5487628 | K9: 80 | L9: 240 | M9: 3층이하 | N9: 제2종일반주거 | O9: 토지대금 전액납부 즉시 가능 | P9: 7900 1299 659871 | Q9: 50000000 | R9: 5개월 일시납, 3년 분할납부중 택일 | S9: =ROUNDDOWN(H9*0.009,-3) -> 70316000 | T9: =IF(S9>50000000,1,0) -> 1 | U9: =IF(Q9=50000000,1,0) -> 1 | V9: 일치 | W9: =IF(H9>5000000000,"3년","3년이하") -> 3년
A10: =A9+1 -> 2 | B10: 주차장 | C10: 주44 | D10: 수원시 이의동 | E10: 1223 | F10: 1255.4 | G10: =F10/3.3058 -> 379.7567911 | H10: =ROUNDDOWN(I10*F10,-3) -> 1004320000 | I10: 800000 | J10: =I10*3.3058 -> 2644640 | K10: - | L10: - | M10: - | N10: 자연녹지 | O10: 토지대금 전액납부 즉시 가능 | P10: 7900 1299 651148 | Q10: =ROUNDDOWN(H10*0.009,-3) -> 9038000 | R10: 5개월 일시납, 2년 분할납부중 택일 | S10: 9038000 | T10: 0 | U10: 0 | V10: 일치 | W10: 3년이하
A11: =A10+1 -> 3 | B11: 주차장 | C11: 주49 | D11: 수원시 이의동 | E11: 1283-2 | F11: 2624 | G11: 793.7564281 | H11: 5615360000 | I11: 2140000 | J11: 7074412 | K11: 80 | L11: 320 | M11: 4층이하 | N11: 2종일반주거 | O11: 토지대금 전액납부 즉시 가능 | P11: 7900 1299 650636 | Q11: 50000000 | R11: 5개월 일시납, 3년 분할납부중 택일 | S11: 50538000 | T11: 1 | U11: 1 | V11: 일치 | W11: 3년
B12: 소계 | F12: =SUM(F9:F11) -> 8586 | G12: =SUM(G9:G11) -> 2597.253312 | H12: =SUM(H9:H11) -> 14432636000 | I12: =H12/F12 -> 1680949.918 | J12: =H12/G12 -> 5556884.24 | Q12: =SUM(Q9:Q11) -> 109038000 | U12: 0 | V12: 일치 | W12: 3년
A13: 1 | B13: 업무시설 | C13: 업무4-1 | D13: 4단계 | F13: 2742 | G13: 829.4512675 | H13: 5538840000 | I13: 2020000 | J13: 6677716 | K13: 60 | L13: 300 | M13: 8층 이하 | N13: 준주거 | O13: 토지대금 전액납부 즉시 가능 | P13: 7900 1299 651203 | Q13: =ROUNDDOWN(H13*0.9%,-3) -> 49849000 | R13: 5개월 일시납, 3년 분할납부중 택일
B14: 소계 | F14: 2742 | G14: 829.4512675 | H14: 5538840000 | I14: 2020000 | J14: 6677716 | Q14: 49849000
A15: 1 | B15: 유치원 | C15: 유3 | D15: 수원시 하동 | E15: 1001-1 | F15: 1587.9 | G15: =F15/3.3058 -> 480.3375885 | H15: =ROUNDDOWN(I15*F15,-2) -> 3263134500 | I15: 2055000 | J15: =I15*3.3058 -> 6793419 | K15: 50 | L15: 200 | M15: 4층 이하 | N15: 2종일반주거 | O15: 토지대금 전액납부 즉시 가능 | P15: 7900 1299 637863 | Q15: =ROUNDDOWN(H15*0.009,-3) -> 29368000 | R15: 5개월 일시납, 2년 분할납부중 택일 | U15: 0 | V15: 일치 | W15: 3년이하
B16: 소계 | F16: =SUM(F15:F15) -> 1587.9 | G16: =SUM(G15:G15) -> 480.3375885 | H16: =SUM(H15:H15) -> 3263134500 | I16: =SUM(I15:I15) -> 2055000 | J16: =SUM(J15:J15) -> 6793419 | Q16: =SUM(Q15:Q15) -> 29368000
